[Event "Titled Tuesday Blitz February 14 Early 2023"]
[White "Gharibyan, Mamikon"]
[Black "Weetik, Vjacheslav"]
[WhiteFideId "13308300"]
[BlackFideId "4153472"]
[WhiteElo "2500"]
[BlackElo "2423"]
[Result "1-0"]
[Round "05"]
[TimeControl "180+2"]
[Date "2023.02.15"]
[WhiteClock "0:00:17"]
[BlackClock "0:00:02"]

1. e4 {[%clk 0:03:00]}  c6 {[%clk 0:02:58]} 2. Nf3 {[%clk 0:03:00]}  d5 {[%clk 0:02:59]} 3. d3 {[%clk 0:03:00]}  g6 {[%clk 0:02:56]} 4. e5 {[%clk 0:02:58]}  c5 {[%clk 0:02:50]} 5. d4 {[%clk 0:02:48]}  cxd4 {[%clk 0:02:43]} 6. Qxd4 {[%clk 0:02:48]}  Nc6 {[%clk 0:02:29]} 7. Bb5 {[%clk 0:02:46]}  Nh6 {[%clk 0:02:02]} 8. Nc3 {[%clk 0:02:41]}  e6 {[%clk 0:01:56]} 9. Bg5 {[%clk 0:02:02]}  Nf5 {[%clk 0:01:03]} 10. Bxd8 {[%clk 0:01:20]}  Nxd4 {[%clk 0:01:03]} 11. Nxd4 {[%clk 0:01:20]}  Kxd8 {[%clk 0:01:03]} 12. Bxc6 {[%clk 0:01:20]}  bxc6 {[%clk 0:01:02]} 13. Nxc6+ {[%clk 0:01:21]}  Kd7 {[%clk 0:00:53]} 14. Nd4 {[%clk 0:01:21]}  Bg7 {[%clk 0:00:44]} 15. f4 {[%clk 0:01:07]}  g5 {[%clk 0:00:32]} 16. g3 {[%clk 0:01:05]}  f6 {[%clk 0:00:19]} 17. Nf3 {[%clk 0:00:49]}  fxe5 {[%clk 0:00:16]} 18. Nxe5+ {[%clk 0:00:48]}  Bxe5 {[%clk 0:00:16]} 19. fxe5 {[%clk 0:00:49]}  Rf8 {[%clk 0:00:14]} 20. O-O-O {[%clk 0:00:48]}  Rf5 {[%clk 0:00:14]} 21. Rhe1 {[%clk 0:00:47]}  Ke7 {[%clk 0:00:12]} 22. Nb5 {[%clk 0:00:47]}  Bd7 {[%clk 0:00:12]} 23. Nd4 {[%clk 0:00:45]}  Rf2 {[%clk 0:00:12]} 24. Rd2 {[%clk 0:00:45]}  Raf8 {[%clk 0:00:13]} 25. Rxf2 {[%clk 0:00:38]}  Rxf2 {[%clk 0:00:13]} 26. Re2 {[%clk 0:00:39]}  Rf1+ {[%clk 0:00:12]} 27. Kd2 {[%clk 0:00:39]}  h6 {[%clk 0:00:09]} 28. Kc3 {[%clk 0:00:35]}  Be8 {[%clk 0:00:08]} 29. Kb4 {[%clk 0:00:30]}  Kd7 {[%clk 0:00:05]} 30. Kc5 {[%clk 0:00:29]}  Bh5 {[%clk 0:00:05]} 31. Re3 {[%clk 0:00:28]}  Rf2 {[%clk 0:00:04]} 32. h4 {[%clk 0:00:27]}  g4 {[%clk 0:00:02]} 33. a4 {[%clk 0:00:23]}  Bg6 {[%clk 0:00:02]} 34. Rb3 {[%clk 0:00:17]}  Bxc2 {[%clk 0:00:02]} 35. Rb7+ {[%clk 0:00:17]}  Kc8 {[%clk 0:00:03]} 36. Rxa7 {[%clk 0:00:18]}  Bf5 {[%clk 0:00:02]} 37. b4 {[%clk 0:00:18]}  Rg2 {[%clk 0:00:02]} 38. Nc6 {[%clk 0:00:17]} 1-0


[Site "https://www.chess.com"]

[Event "Titled Tuesday Blitz February 14 Early 2023"]
[White "Makarian, Rudik"]
[Black "Koellner, Ruben Gideon"]
[WhiteFideId "44105681"]
[BlackFideId "12993093"]
[WhiteElo "2545"]
[BlackElo "2426"]
[Result "1-0"]
[Round "05"]
[TimeControl "180+2"]
[Date "2023.02.15"]
[WhiteClock "0:00:24"]
[BlackClock "0:00:04"]

1. d4 {[%clk 0:02:52]}  d6 {[%clk 0:03:00]} 2. Nf3 {[%clk 0:02:52]}  Nf6 {[%clk 0:02:49]} 3. c4 {[%clk 0:02:48]}  g6 {[%clk 0:02:37]} 4. Nc3 {[%clk 0:02:48]}  Bf5 {[%clk 0:02:10]} 5. Qb3 {[%clk 0:02:47]}  b6 {[%clk 0:02:09]} 6. h3 {[%clk 0:02:47]}  c5 {[%clk 0:02:06]} 7. g4 {[%clk 0:02:45]}  Bd7 {[%clk 0:02:05]} 8. Bg2 {[%clk 0:02:44]}  Nc6 {[%clk 0:02:05]} 9. d5 {[%clk 0:02:31]}  Nd4 {[%clk 0:02:05]} 10. Qd1 {[%clk 0:02:26]}  Nxf3+ {[%clk 0:02:03]} 11. exf3 {[%clk 0:02:26]}  Bg7 {[%clk 0:01:55]} 12. O-O {[%clk 0:02:21]}  O-O {[%clk 0:01:55]} 13. f4 {[%clk 0:02:17]}  h5 {[%clk 0:01:47]} 14. g5 {[%clk 0:02:15]}  Ne8 {[%clk 0:01:44]} 15. Re1 {[%clk 0:02:14]}  Bh8 {[%clk 0:01:26]} 16. Qe2 {[%clk 0:02:07]}  Ng7 {[%clk 0:01:25]} 17. b3 {[%clk 0:01:53]}  Nf5 {[%clk 0:01:23]} 18. Bb2 {[%clk 0:01:53]}  Re8 {[%clk 0:01:20]} 19. Kh2 {[%clk 0:01:51]}  a6 {[%clk 0:01:19]} 20. a4 {[%clk 0:01:50]}  Rb8 {[%clk 0:01:17]} 21. Be4 {[%clk 0:01:16]}  Qc8 {[%clk 0:01:09]} 22. Bxf5 {[%clk 0:01:14]}  Bxf5 {[%clk 0:01:09]} 23. Qf3 {[%clk 0:01:07]}  b5 {[%clk 0:00:42]} 24. axb5 {[%clk 0:01:08]}  axb5 {[%clk 0:00:43]} 25. cxb5 {[%clk 0:01:08]}  Rb7 {[%clk 0:00:39]} 26. Re2 {[%clk 0:00:46]}  Bd7 {[%clk 0:00:10]} 27. Rae1 {[%clk 0:00:40]}  Kf8 {[%clk 0:00:09]} 28. Ne4 {[%clk 0:00:31]}  Bxb2 {[%clk 0:00:09]} 29. Rxb2 {[%clk 0:00:32]}  Rxb5 {[%clk 0:00:06]} 30. Qc3 {[%clk 0:00:32]}  Kg8 {[%clk 0:00:06]} 31. Rbe2 {[%clk 0:00:33]}  Rb7 {[%clk 0:00:04]} 32. Re3 {[%clk 0:00:24]} 1-0


[Site "https://www.chess.com"]

[Event "Titled Tuesday Blitz February 14 Early 2023"]
[White "Manukyan, Sargis A."]
[Black "Rakhmanov, Aleksandr"]
[WhiteFideId "13303970"]
[BlackFideId "4173708"]
[WhiteElo "2158"]
[BlackElo "2632"]
[Result "1-0"]
[Round "05"]
[TimeControl "180+2"]
[Date "2023.02.15"]
[WhiteClock "0:00:29"]
[BlackClock "0:00:06"]

1. d4 {[%clk 0:03:00]}  Nf6 {[%clk 0:02:57]} 2. c4 {[%clk 0:03:00]}  d6 {[%clk 0:02:57]} 3. Nf3 {[%clk 0:02:59]}  g6 {[%clk 0:02:57]} 4. Nc3 {[%clk 0:02:59]}  Bf5 {[%clk 0:02:58]} 5. Bf4 {[%clk 0:02:56]}  Bg7 {[%clk 0:02:57]} 6. h3 {[%clk 0:02:56]}  Ne4 {[%clk 0:02:53]} 7. Nxe4 {[%clk 0:02:54]}  Bxe4 {[%clk 0:02:54]} 8. e3 {[%clk 0:02:54]}  c5 {[%clk 0:02:41]} 9. Be2 {[%clk 0:02:39]}  Qa5+ {[%clk 0:02:29]} 10. Qd2 {[%clk 0:02:26]}  Qxd2+ {[%clk 0:02:26]} 11. Kxd2 {[%clk 0:02:27]}  Nc6 {[%clk 0:02:05]} 12. d5 {[%clk 0:01:54]}  Na5 {[%clk 0:01:44]} 13. Kc1 {[%clk 0:01:33]}  a6 {[%clk 0:01:34]} 14. Rg1 {[%clk 0:01:25]}  b5 {[%clk 0:00:37]} 15. Nd2 {[%clk 0:01:23]}  Bf5 {[%clk 0:00:37]} 16. cxb5 {[%clk 0:01:18]}  axb5 {[%clk 0:00:16]} 17. Bxb5+ {[%clk 0:01:17]}  Bd7 {[%clk 0:00:17]} 18. Bxd7+ {[%clk 0:01:16]}  Kxd7 {[%clk 0:00:18]} 19. Kc2 {[%clk 0:01:15]}  Rhb8 {[%clk 0:00:11]} 20. Rgb1 {[%clk 0:01:15]}  c4 {[%clk 0:00:11]} 21. e4 {[%clk 0:01:09]}  Rb5 {[%clk 0:00:09]} 22. a4 {[%clk 0:01:01]}  Rb7 {[%clk 0:00:05]} 23. Ra2 {[%clk 0:01:00]}  Nb3 {[%clk 0:00:02]} 24. Be3 {[%clk 0:01:00]}  Rc8 {[%clk 0:00:02]} 25. a5 {[%clk 0:00:57]}  c3 {[%clk 0:00:02]} 26. bxc3 {[%clk 0:00:38]}  Rxc3+ {[%clk 0:00:03]} 27. Kd1 {[%clk 0:00:37]}  Nxa5 {[%clk 0:00:01]} 28. Rxa5 {[%clk 0:00:35]}  Rxb1+ {[%clk 0:00:02]} 29. Nxb1 {[%clk 0:00:36]}  Rb3 {[%clk 0:00:02]} 30. Ra7+ {[%clk 0:00:34]}  Ke8 {[%clk 0:00:02]} 31. Nd2 {[%clk 0:00:34]}  Rb2 {[%clk 0:00:02]} 32. Ke2 {[%clk 0:00:34]}  f5 {[%clk 0:00:02]} 33. f3 {[%clk 0:00:33]}  Bf6 {[%clk 0:00:02]} 34. Kd3 {[%clk 0:00:32]}  Rb5 {[%clk 0:00:01]} 35. g4 {[%clk 0:00:32]}  fxg4 {[%clk 0:00:01]} 36. hxg4 {[%clk 0:00:33]}  h5 {[%clk 0:00:01]} 37. gxh5 {[%clk 0:00:33]}  gxh5 {[%clk 0:00:02]} 38. Ra8+ {[%clk 0:00:32]}  Kf7 {[%clk 0:00:02]} 39. Bd4 {[%clk 0:00:32]}  Bxd4 {[%clk 0:00:01]} 40. Kxd4 {[%clk 0:00:33]}  Rb2 {[%clk 0:00:02]} 41. Ke3 {[%clk 0:00:33]}  Rb4 {[%clk 0:00:02]} 42. Rh8 {[%clk 0:00:32]}  Kg6 {[%clk 0:00:02]} 43. Kf4 {[%clk 0:00:32]}  Rb2 {[%clk 0:00:02]} 44. Nf1 {[%clk 0:00:31]}  Rf2 {[%clk 0:00:02]} 45. Ng3 {[%clk 0:00:28]}  Rh2 {[%clk 0:00:02]} 46. Nf5 {[%clk 0:00:27]}  Kf6 {[%clk 0:00:02]} 47. Rh6+ {[%clk 0:00:27]}  Kf7 {[%clk 0:00:03]} 48. Rh7+ {[%clk 0:00:27]}  Kf6 {[%clk 0:00:03]} 49. Rxe7 {[%clk 0:00:27]}  h4 {[%clk 0:00:03]} 50. Re6+ {[%clk 0:00:27]}  Kf7 {[%clk 0:00:04]} 51. Rxd6 {[%clk 0:00:25]}  h3 {[%clk 0:00:04]} 52. Rh6 {[%clk 0:00:26]}  Rh1 {[%clk 0:00:05]} 53. Kg3 {[%clk 0:00:25]}  Rg1+ {[%clk 0:00:04]} 54. Kxh3 {[%clk 0:00:25]}  Kg8 {[%clk 0:00:03]} 55. Rh4 {[%clk 0:00:25]}  Kf7 {[%clk 0:00:04]} 56. Rg4 {[%clk 0:00:26]}  Rh1+ {[%clk 0:00:04]} 57. Kg3 {[%clk 0:00:26]}  Kf6 {[%clk 0:00:05]} 58. Kf4 {[%clk 0:00:26]}  Ra1 {[%clk 0:00:05]} 59. e5+ {[%clk 0:00:27]}  Kf7 {[%clk 0:00:05]} 60. Rg7+ {[%clk 0:00:27]}  Kf8 {[%clk 0:00:05]} 61. Rb7 {[%clk 0:00:28]}  Ra4+ {[%clk 0:00:05]} 62. Kg5 {[%clk 0:00:28]}  Ke8 {[%clk 0:00:06]} 63. Kf6 {[%clk 0:00:28]}  Kd8 {[%clk 0:00:06]} 64. Rh7 {[%clk 0:00:28]}  Ke8 {[%clk 0:00:06]} 65. e6 {[%clk 0:00:28]}  Kd8 {[%clk 0:00:07]} 66. d6 {[%clk 0:00:29]}  Kc8 {[%clk 0:00:06]} 67. Rh8+ {[%clk 0:00:29]}  Kb7 {[%clk 0:00:07]} 68. d7 {[%clk 0:00:29]}  Rd4 {[%clk 0:00:06]} 69. d8=Q {[%clk 0:00:29]} 1-0


[Site "https://www.chess.com"]

[Event "Titled Tuesday Blitz February 14 Early 2023"]
[White "Acor, Corey"]
[Black "Bodnaruk, Anastasia"]
[WhiteFideId "2024861"]
[BlackFideId "4181751"]
[WhiteElo "2216"]
[BlackElo "2350"]
[Result "0-1"]
[Round "05"]
[TimeControl "180+2"]
[Date "2023.02.15"]
[WhiteClock "0:00:02"]
[BlackClock "0:00:06"]

1. e4 {[%clk 0:03:00]}  c5 {[%clk 0:02:59]} 2. Nc3 {[%clk 0:02:59]}  d6 {[%clk 0:02:58]} 3. g3 {[%clk 0:02:59]}  Nc6 {[%clk 0:02:58]} 4. Bg2 {[%clk 0:02:59]}  g6 {[%clk 0:02:58]} 5. d3 {[%clk 0:02:59]}  Bg7 {[%clk 0:02:59]} 6. Be3 {[%clk 0:03:00]}  Rb8 {[%clk 0:02:56]} 7. Nge2 {[%clk 0:02:53]}  Nd4 {[%clk 0:02:52]} 8. O-O {[%clk 0:02:46]}  e6 {[%clk 0:02:47]} 9. Qd2 {[%clk 0:02:38]}  Ne7 {[%clk 0:02:44]} 10. a3 {[%clk 0:02:18]}  O-O {[%clk 0:02:39]} 11. Rab1 {[%clk 0:02:18]}  b6 {[%clk 0:02:19]} 12. b4 {[%clk 0:01:46]}  Bb7 {[%clk 0:02:11]} 13. Rfc1 {[%clk 0:01:40]}  f5 {[%clk 0:01:59]} 14. f4 {[%clk 0:01:35]}  e5 {[%clk 0:01:56]} 15. Nd5 {[%clk 0:01:30]}  Re8 {[%clk 0:01:24]} 16. c4 {[%clk 0:01:05]}  Nxe2+ {[%clk 0:01:13]} 17. Qxe2 {[%clk 0:01:05]}  Nxd5 {[%clk 0:01:13]} 18. cxd5 {[%clk 0:01:03]}  exf4 {[%clk 0:01:13]} 19. gxf4 {[%clk 0:00:55]}  Bxd5 {[%clk 0:01:07]} 20. Qc2 {[%clk 0:00:20]}  Ba8 {[%clk 0:00:53]} 21. Re1 {[%clk 0:00:20]}  Qh4 {[%clk 0:00:38]} 22. Kh1 {[%clk 0:00:17]}  Rbc8 {[%clk 0:00:30]} 23. bxc5 {[%clk 0:00:15]}  dxc5 {[%clk 0:00:30]} 24. e5 {[%clk 0:00:14]}  g5 {[%clk 0:00:24]} 25. Bxa8 {[%clk 0:00:12]}  Rxa8 {[%clk 0:00:24]} 26. Qg2 {[%clk 0:00:06]}  g4 {[%clk 0:00:11]} 27. d4 {[%clk 0:00:05]}  cxd4 {[%clk 0:00:11]} 28. Bxd4 {[%clk 0:00:06]}  Rad8 {[%clk 0:00:10]} 29. Bf2 {[%clk 0:00:06]}  Qe7 {[%clk 0:00:10]} 30. a4 {[%clk 0:00:07]}  Qe6 {[%clk 0:00:08]} 31. Rbd1 {[%clk 0:00:06]}  h5 {[%clk 0:00:07]} 32. Bh4 {[%clk 0:00:06]}  Rd7 {[%clk 0:00:07]} 33. Qe2 {[%clk 0:00:04]}  Kh7 {[%clk 0:00:06]} 34. Rxd7 {[%clk 0:00:04]}  Qxd7 {[%clk 0:00:06]} 35. Qc2 {[%clk 0:00:03]}  Qd5+ {[%clk 0:00:06]} 36. Kg1 {[%clk 0:00:04]}  Qe6 {[%clk 0:00:05]} 37. Rd1 {[%clk 0:00:04]}  Bf8 {[%clk 0:00:05]} 38. Bg5 {[%clk 0:00:03]}  Bc5+ {[%clk 0:00:05]} 39. Kg2 {[%clk 0:00:03]}  Qc6+ {[%clk 0:00:05]} 40. Kg3 {[%clk 0:00:02]}  Qf3+ {[%clk 0:00:06]} 41. Kh4 {[%clk 0:00:02]}  Qh3# {[%clk 0:00:06]} 0-1


[Site "https://www.chess.com"]

[Event "Titled Tuesday Blitz February 14 Early 2023"]
[White "Mamedov, Edgar"]
[Black "Orozbaev, Eldiar"]
[WhiteFideId "13739980"]
[BlackFideId "13802240"]
[WhiteElo "2193"]
[BlackElo "2235"]
[Result "0-1"]
[Round "05"]
[TimeControl "180+2"]
[Date "2023.02.15"]
[WhiteClock "0:00:01"]
[BlackClock "0:00:43"]

1. d4 {[%clk 0:03:00]}  d5 {[%clk 0:02:58]} 2. Bg5 {[%clk 0:02:59]}  c5 {[%clk 0:02:54]} 3. dxc5 {[%clk 0:02:58]}  Nc6 {[%clk 0:02:53]} 4. Nf3 {[%clk 0:02:53]}  f6 {[%clk 0:02:52]} 5. Bd2 {[%clk 0:02:52]}  e5 {[%clk 0:02:52]} 6. b4 {[%clk 0:02:52]}  e4 {[%clk 0:02:50]} 7. Ng1 {[%clk 0:02:51]}  d4 {[%clk 0:02:45]} 8. e3 {[%clk 0:02:08]}  dxe3 {[%clk 0:02:33]} 9. fxe3 {[%clk 0:02:08]}  Nge7 {[%clk 0:02:34]} 10. Ne2 {[%clk 0:02:04]}  Nd5 {[%clk 0:02:33]} 11. c3 {[%clk 0:01:57]}  Ne5 {[%clk 0:02:26]} 12. Nd4 {[%clk 0:01:55]}  Bg4 {[%clk 0:02:16]} 13. Qa4+ {[%clk 0:01:54]}  Kf7 {[%clk 0:02:14]} 14. Qc2 {[%clk 0:01:39]}  f5 {[%clk 0:02:04]} 15. c4 {[%clk 0:01:26]}  Nc7 {[%clk 0:01:44]} 16. Bc3 {[%clk 0:00:48]}  a5 {[%clk 0:01:42]} 17. a3 {[%clk 0:00:44]}  axb4 {[%clk 0:01:42]} 18. axb4 {[%clk 0:00:44]}  Rxa1 {[%clk 0:01:43]} 19. Bxa1 {[%clk 0:00:44]}  Be7 {[%clk 0:01:44]} 20. h3 {[%clk 0:00:39]}  Bh4+ {[%clk 0:01:43]} 21. Kd2 {[%clk 0:00:38]}  Bh5 {[%clk 0:01:38]} 22. Kc1 {[%clk 0:00:31]}  g6 {[%clk 0:01:32]} 23. g4 {[%clk 0:00:30]}  Bg5 {[%clk 0:01:27]} 24. Qf2 {[%clk 0:00:24]}  Qa8 {[%clk 0:01:22]} 25. Bc3 {[%clk 0:00:21]}  Bxg4 {[%clk 0:01:22]} 26. hxg4 {[%clk 0:00:19]}  Nxg4 {[%clk 0:01:22]} 27. Qg3 {[%clk 0:00:17]}  Bxe3+ {[%clk 0:01:22]} 28. Bd2 {[%clk 0:00:17]}  Bxd2+ {[%clk 0:01:14]} 29. Kxd2 {[%clk 0:00:14]}  Qa2+ {[%clk 0:01:14]} 30. Kc1 {[%clk 0:00:14]}  Ne8 {[%clk 0:01:07]} 31. Be2 {[%clk 0:00:10]}  Ngf6 {[%clk 0:00:48]} 32. Qb3 {[%clk 0:00:09]}  Qxb3 {[%clk 0:00:46]} 33. Nxb3 {[%clk 0:00:09]}  f4 {[%clk 0:00:46]} 34. Nd4 {[%clk 0:00:06]}  f3 {[%clk 0:00:46]} 35. Bxf3 {[%clk 0:00:06]}  exf3 {[%clk 0:00:47]} 36. Nxf3 {[%clk 0:00:07]}  Ng7 {[%clk 0:00:48]} 37. Nc3 {[%clk 0:00:07]}  Nf5 {[%clk 0:00:48]} 38. Ne5+ {[%clk 0:00:06]}  Kg7 {[%clk 0:00:46]} 39. Nd5 {[%clk 0:00:06]}  h5 {[%clk 0:00:45]} 40. b5 {[%clk 0:00:06]}  h4 {[%clk 0:00:44]} 41. c6 {[%clk 0:00:06]}  bxc6 {[%clk 0:00:45]} 42. Nxc6 {[%clk 0:00:06]}  h3 {[%clk 0:00:44]} 43. Nxf6 {[%clk 0:00:03]}  Kxf6 {[%clk 0:00:44]} 44. b6 {[%clk 0:00:03]}  Nd6 {[%clk 0:00:42]} 45. c5 {[%clk 0:00:01]}  Nb7 {[%clk 0:00:43]} 46. Nb4 {[%clk 0:00:01]}  Nxc5 {[%clk 0:00:43]} 47. Nd5+ {[%clk 0:00:01]}  Ke5 {[%clk 0:00:44]} 48. Ne3 {[%clk 0:00:01]}  g5 {[%clk 0:00:44]} 49. Kd2 {[%clk 0:00:01]}  Kf4 {[%clk 0:00:44]} 50. Nd5+ {[%clk 0:00:01]}  Kg3 {[%clk 0:00:42]} 51. Rg1+ {[%clk 0:00:01]}  Kf2 {[%clk 0:00:42]} 52. Rxg5 {[%clk 0:00:01]}  Ne4+ {[%clk 0:00:43]} 0-1


[Site "https://www.chess.com"]

[Event "Titled Tuesday Blitz February 14 Early 2023"]
[White "Petukhov, Dmitry"]
[Black "Postny, Evgeny"]
[WhiteFideId "4142748"]
[BlackFideId "2804344"]
[WhiteElo "2350"]
[BlackElo "2549"]
[Result "1-0"]
[Round "05"]
[TimeControl "180+2"]
[Date "2023.02.15"]
[WhiteClock "0:00:19"]
[BlackClock "0:00:07"]

1. e4 {[%clk 0:02:59]}  c5 {[%clk 0:02:52]} 2. c3 {[%clk 0:02:59]}  b6 {[%clk 0:02:51]} 3. d4 {[%clk 0:02:57]}  Bb7 {[%clk 0:02:51]} 4. Bd3 {[%clk 0:02:56]}  g6 {[%clk 0:02:49]} 5. Nf3 {[%clk 0:02:53]}  Bg7 {[%clk 0:02:49]} 6. O-O {[%clk 0:02:52]}  Nf6 {[%clk 0:02:47]} 7. Re1 {[%clk 0:02:52]}  O-O {[%clk 0:02:45]} 8. h3 {[%clk 0:02:40]}  cxd4 {[%clk 0:02:42]} 9. cxd4 {[%clk 0:02:39]}  d5 {[%clk 0:02:42]} 10. e5 {[%clk 0:02:38]}  Ne4 {[%clk 0:02:42]} 11. Nbd2 {[%clk 0:02:26]}  Nxd2 {[%clk 0:02:39]} 12. Bxd2 {[%clk 0:02:26]}  Ba6 {[%clk 0:02:35]} 13. Bxa6 {[%clk 0:02:20]}  Nxa6 {[%clk 0:02:36]} 14. e6 {[%clk 0:02:20]}  fxe6 {[%clk 0:02:30]} 15. Rxe6 {[%clk 0:02:15]}  Nc7 {[%clk 0:02:29]} 16. Re1 {[%clk 0:02:12]}  Qd6 {[%clk 0:02:20]} 17. Ne5 {[%clk 0:02:09]}  Ne6 {[%clk 0:02:13]} 18. Bc3 {[%clk 0:02:01]}  Nf4 {[%clk 0:02:08]} 19. Qg4 {[%clk 0:01:58]}  h5 {[%clk 0:02:01]} 20. Qg3 {[%clk 0:01:55]}  Kh7 {[%clk 0:01:42]} 21. Bd2 {[%clk 0:01:53]}  Bh6 {[%clk 0:01:28]} 22. Rac1 {[%clk 0:01:53]}  Nxh3+ {[%clk 0:01:12]} 23. Qxh3 {[%clk 0:01:05]}  Bxd2 {[%clk 0:01:13]} 24. Rc6 {[%clk 0:01:05]}  Bxe1 {[%clk 0:00:49]} 25. Rxd6 {[%clk 0:00:59]}  Bxf2+ {[%clk 0:00:48]} 26. Kh1 {[%clk 0:00:59]}  exd6 {[%clk 0:00:48]} 27. Qd7+ {[%clk 0:00:59]}  Kh6 {[%clk 0:00:43]} 28. Nf7+ {[%clk 0:00:59]}  Rxf7 {[%clk 0:00:37]} 29. Qxf7 {[%clk 0:01:00]}  Bg3 {[%clk 0:00:30]} 30. Kg1 {[%clk 0:00:27]}  Rc8 {[%clk 0:00:29]} 31. Kf1 {[%clk 0:00:24]}  Rc2 {[%clk 0:00:21]} 32. Qf8+ {[%clk 0:00:23]}  Kg5 {[%clk 0:00:13]} 33. Qe7+ {[%clk 0:00:23]}  Kg4 {[%clk 0:00:12]} 34. Qe6+ {[%clk 0:00:21]}  Kh4 {[%clk 0:00:11]} 35. Qxg6 {[%clk 0:00:18]}  Rf2+ {[%clk 0:00:09]} 36. Kg1 {[%clk 0:00:19]}  Rxb2 {[%clk 0:00:08]} 37. Qf6+ {[%clk 0:00:19]}  Kg4 {[%clk 0:00:08]} 38. Qe6+ {[%clk 0:00:19]}  Kh4 {[%clk 0:00:08]} 39. Qh3+ {[%clk 0:00:19]}  Kg5 {[%clk 0:00:07]} 40. Qxg3+ {[%clk 0:00:20]}  Kf6 {[%clk 0:00:07]} 41. Qxd6+ {[%clk 0:00:19]} 1-0


[Site "https://www.chess.com"]

[Event "Titled Tuesday Blitz February 14 Early 2023"]
[White "Degenbaev, Aziz"]
[Black "Harsh Suresh"]
[WhiteFideId "13802640"]
[BlackFideId "45018464"]
[WhiteElo "2203"]
[BlackElo "2298"]
[Result "0-1"]
[Round "05"]
[TimeControl "180+2"]
[Date "2023.02.15"]
[WhiteClock "0:00:04"]
[BlackClock "0:00:10"]

1. e4 {[%clk 0:03:00]}  c5 {[%clk 0:02:58]} 2. Nf3 {[%clk 0:02:59]}  g6 {[%clk 0:02:55]} 3. c3 {[%clk 0:02:59]}  Bg7 {[%clk 0:02:55]} 4. d4 {[%clk 0:02:57]}  cxd4 {[%clk 0:02:56]} 5. cxd4 {[%clk 0:02:58]}  d5 {[%clk 0:02:56]} 6. e5 {[%clk 0:02:57]}  Bg4 {[%clk 0:02:56]} 7. Bb5+ {[%clk 0:02:55]}  Nd7 {[%clk 0:02:54]} 8. Nc3 {[%clk 0:02:51]}  e6 {[%clk 0:02:51]} 9. O-O {[%clk 0:02:45]}  Ne7 {[%clk 0:02:48]} 10. h3 {[%clk 0:02:23]}  Bxf3 {[%clk 0:02:47]} 11. Qxf3 {[%clk 0:02:24]}  a6 {[%clk 0:02:37]} 12. Bxd7+ {[%clk 0:02:14]}  Qxd7 {[%clk 0:02:36]} 13. Ne2 {[%clk 0:02:01]}  O-O {[%clk 0:02:32]} 14. Bg5 {[%clk 0:01:58]}  Rfc8 {[%clk 0:02:31]} 15. Rfc1 {[%clk 0:01:24]}  Nc6 {[%clk 0:02:27]} 16. h4 {[%clk 0:01:21]}  h6 {[%clk 0:02:21]} 17. Bf6 {[%clk 0:01:21]}  Bxf6 {[%clk 0:01:57]} 18. Qxf6 {[%clk 0:01:12]}  Qd8 {[%clk 0:01:15]} 19. Qf4 {[%clk 0:01:09]}  Kg7 {[%clk 0:01:13]} 20. Rc3 {[%clk 0:01:04]}  Na7 {[%clk 0:01:06]} 21. Rg3 {[%clk 0:00:29]}  Rc2 {[%clk 0:01:01]} 22. Rf3 {[%clk 0:00:19]}  Qe7 {[%clk 0:00:48]} 23. Ng3 {[%clk 0:00:18]}  Rac8 {[%clk 0:00:42]} 24. b3 {[%clk 0:00:18]}  Nb5 {[%clk 0:00:39]} 25. Re1 {[%clk 0:00:08]}  Rxa2 {[%clk 0:00:34]} 26. Kh2 {[%clk 0:00:03]}  Rac2 {[%clk 0:00:30]} 27. Ree3 {[%clk 0:00:03]}  Nc3 {[%clk 0:00:26]} 28. Nh5+ {[%clk 0:00:03]}  gxh5 {[%clk 0:00:20]} 29. Rg3+ {[%clk 0:00:04]}  Kh7 {[%clk 0:00:17]} 30. Ref3 {[%clk 0:00:02]}  Rc7 {[%clk 0:00:14]} 31. Qe3 {[%clk 0:00:02]}  Ne4 {[%clk 0:00:12]} 32. Rf6 {[%clk 0:00:02]}  Nxf6 {[%clk 0:00:12]} 33. exf6 {[%clk 0:00:03]}  Qxf6 {[%clk 0:00:12]} 34. Qd3+ {[%clk 0:00:04]}  Qf5 {[%clk 0:00:12]} 35. Qe3 {[%clk 0:00:04]}  Rxf2 {[%clk 0:00:10]} 0-1


[Site "https://www.chess.com"]

[Event "Titled Tuesday Blitz February 14 Early 2023"]
[White "Beerdsen, Thomas"]
[Black "Kavutskiy, Konstantin"]
[WhiteFideId "1030108"]
[BlackFideId "2026384"]
[WhiteElo "2507"]
[BlackElo "2414"]
[Result "1-0"]
[Round "05"]
[TimeControl "180+2"]
[Date "2023.02.15"]
[WhiteClock "0:00:33"]
[BlackClock "0:00:07"]

1. e4 {[%clk 0:03:00]}  c5 {[%clk 0:02:59]} 2. Nf3 {[%clk 0:03:01]}  Nc6 {[%clk 0:02:59]} 3. Bc4 {[%clk 0:03:00]}  e6 {[%clk 0:02:58]} 4. O-O {[%clk 0:03:01]}  Nf6 {[%clk 0:02:55]} 5. Re1 {[%clk 0:02:57]}  d6 {[%clk 0:02:49]} 6. Bb3 {[%clk 0:02:52]}  Be7 {[%clk 0:02:48]} 7. c3 {[%clk 0:02:53]}  O-O {[%clk 0:02:42]} 8. d4 {[%clk 0:02:54]}  cxd4 {[%clk 0:02:40]} 9. cxd4 {[%clk 0:02:55]}  Bd7 {[%clk 0:02:38]} 10. Nc3 {[%clk 0:02:54]}  Na5 {[%clk 0:02:33]} 11. Bc2 {[%clk 0:02:54]}  Rc8 {[%clk 0:02:31]} 12. Bg5 {[%clk 0:02:26]}  b5 {[%clk 0:02:20]} 13. e5 {[%clk 0:02:16]}  Nd5 {[%clk 0:02:15]} 14. Nxd5 {[%clk 0:02:01]}  Bxg5 {[%clk 0:02:04]} 15. Nxg5 {[%clk 0:02:00]}  Qxg5 {[%clk 0:02:05]} 16. f4 {[%clk 0:01:59]}  Qh4 {[%clk 0:01:34]} 17. g3 {[%clk 0:01:42]}  Qd8 {[%clk 0:01:19]} 18. Ne3 {[%clk 0:01:38]}  dxe5 {[%clk 0:01:16]} 19. fxe5 {[%clk 0:01:32]}  Bc6 {[%clk 0:01:12]} 20. Qh5 {[%clk 0:01:17]}  g6 {[%clk 0:01:11]} 21. Qh6 {[%clk 0:01:18]}  Qxd4 {[%clk 0:01:06]} 22. Rad1 {[%clk 0:01:15]}  Qxe5 {[%clk 0:01:01]} 23. b4 {[%clk 0:01:15]}  Rfd8 {[%clk 0:00:36]} 24. Nd5 {[%clk 0:00:58]}  Qxe1+ {[%clk 0:00:26]} 25. Rxe1 {[%clk 0:00:58]}  Bxd5 {[%clk 0:00:27]} 26. Bb1 {[%clk 0:00:44]}  Nc6 {[%clk 0:00:25]} 27. Qf4 {[%clk 0:00:34]}  Bc4 {[%clk 0:00:17]} 28. h4 {[%clk 0:00:30]}  Rd4 {[%clk 0:00:13]} 29. Qf6 {[%clk 0:00:31]}  Rg4 {[%clk 0:00:10]} 30. Re4 {[%clk 0:00:31]}  Rxe4 {[%clk 0:00:09]} 31. Bxe4 {[%clk 0:00:31]}  Nxb4 {[%clk 0:00:09]} 32. h5 {[%clk 0:00:31]}  gxh5 {[%clk 0:00:08]} 33. Qg5+ {[%clk 0:00:32]}  Kf8 {[%clk 0:00:08]} 34. Bxh7 {[%clk 0:00:32]}  Nd5 {[%clk 0:00:07]} 35. Qg8+ {[%clk 0:00:32]}  Ke7 {[%clk 0:00:07]} 36. Qxc8 {[%clk 0:00:33]} 1-0


[Site "https://www.chess.com"]